Cogmind - Beta 17 @@@ ROGUE MODE // 2026.08.21 @ 00:15:05 Player: 4R-ZE3 Result: Self-destructed Performance ------------- Evolutions (1) 500 Regions Visited (3) 600 Robots Destroyed (55) 275 Value Destroyed (1384) 1384 Prototype IDs (1) 20 Alien Tech Used (0) 0 Bonus (103) 103 TOTAL SCORE: 2882 Bonus ------- Follower Combat Kills 103 Cogmind --------- Core Integrity 339/400 Matter 300/300 Energy 246/265 System Corruption 0% Temperature Cool (0) Movement Rolling (230) Ox10 Location -9/Materials Parts ------- > --- POWER (1) -------- Improved Ion Engine > --- PROPULSION (2) --- Wheel > --- UTILITY (4) ------ Cooling System Cooling System Huge Storage Unit Medium Armor Plating > --- WEAPON (2) ------- Heavy Particle Cannon Heavy Particle Cannon > --- INVENTORY (25) --- Ion Engine Light Ion Engine Improved Ion Engine Compact Wheel Compact Wheel Armored Wheel Heat Sink Heat Sink Cooling System Disposable Heat Sink Weight Redist. System Advanced Targeting Computer Medium Armor Plating Medium Armor Plating Hacking Suite Particle Cannon Particle Cannon Advanced Beam Cannon Heavy Particle Cannon Heavy Particle Cannon Heavy Particle Cannon Ion Cannon Mini Grenade Launcher Missile Launcher Peak State ------------ > --- POWER ------------ Improved Ion Engine > --- PROPULSION ------- Wheel Wheel > --- UTILITY ---------- Cooling System Cooling System Huge Storage Unit Medium Armor Plating > --- WEAPON ----------- Heavy Particle Cannon Heavy Particle Cannon > --- INVENTORY -------- Ion Engine Light Ion Engine Improved Ion Engine Compact Wheel Compact Wheel Armored Wheel Heat Sink Heat Sink Cooling System Disposable Heat Sink Weight Redist. System Advanced Targeting Computer Medium Armor Plating Medium Armor Plating Hacking Suite Particle Cannon Particle Cannon Advanced Beam Cannon Heavy Particle Cannon Heavy Particle Cannon Heavy Particle Cannon Ion Cannon Mini Grenade Launcher Missile Launcher [Rating: 22] Favorites ----------- Power Light Ion Engine Engine Light Ion Engine Propulsion Wheel Treads Light Treads Wheel Wheel Utility Huge Storage Unit Device Cooling System Storage Huge Storage Unit Protection Medium Armor Plating Weapon Beam Rifle Energy Gun Beam Rifle Energy Cannon Heavy Particle Cannon Ballistic Gun Light Assault Rifle Build | -11 -10 -10 -9 ------- Run | Yrd Mat Min Mat Slots Evolved 2 | . . . 2 Power . | . . . . Propulsion . | . . . . Utility 2 | . . . 2 Weapon . | . . . . Parts Attached 36 | 6 12 6 12 Power 6 | 1 1 2 2 Engine 6 | 1 1 2 2 Core . | . . . . Reactor . | . . . . Propulsion 8 | 2 3 1 2 Treads 3 | 2 1 . . Leg . | . . . . Wheel 5 | . 2 1 2 Hover . | . . . . Flight . | . . . . Utility 13 | 1 6 1 5 Device 6 | . 3 1 2 Storage 5 | 1 3 . 1 Processor . | . . . . Hackware . | . . . . Protection 2 | . . . 2 Artifact . | . . . . Weapon 9 | 2 2 2 3 Energy Gun 5 | 1 2 2 . Energy Cannon 3 | . . . 3 Ballistic Gun 1 | 1 . . . Ballistic Cannon . | . . . . Launcher . | . . . . Special Weapon . | . . . . Impact Weapon . | . . . . Slashing Weapon . | . . . . Piercing Weapon . | . . . . Special Melee Weapon . | . . . . Unidentified Prototypes 1 | . . . 1 Parts Lost 10 | . 1 5 4 Power 2 | . 1 1 . Propulsion 4 | . . 1 3 Utility 2 | . . 1 1 Weapon 2 | . . 2 . Highest Loss Streak 2 | . 1 2 1 To Critical Strikes . | . . . . Average Backups 16 | 2 11 16 21 Power 1 | . 1 . 2 Propulsion 3 | 1 2 3 3 Utility 6 | . 4 7 7 Weapon 5 | . 2 5 7 Tool/Special . | . . . . Unused Backups 25 | . . . 25 Power . | . . . . Propulsion 3 | . . . 3 Utility 10 | . . . 10 Weapon 12 | . . . 12 Tool/Special . | . . . . Average Slot Usage (%) 98 | . 98 96 99 Engine 12 | . 14 14 11 Treads 5 | . 22 . . Wheel 18 | . 5 25 21 Device 13 | . 12 13 14 Storage 12 | . 14 14 11 Protection 6 | . . . 17 Energy Gun 18 | . 26 27 4 Energy Cannon 6 | . . . 17 Peak Build Rating 22 | 6 12 13 22 Average Rating 14 | 4 10 11 19 On Entrance 7 | . 6 11 12 Avg Prop Armor Cover (%) . | . . . . Naked Turns . | . . . . Heaviest Build 113 | 10 92 92 113 Greatest Support 40 | 40 40 20 20 Greatest Overweight (x) 10 | . 4 9 10 Average Overweight (x) 3 | . 1 4 4 Largest Inventory Capacity 25 | 8 25 25 25 Average Capacity 22 | 6 15 25 25 Most Carried 25 | 3 16 19 25 Average Carried 16 | 2 12 16 21 Final Capacity 25 | 8 25 25 25 Final Carried 24 | 3 16 19 24 Class Distribution -------------------- 95% | Mutant 4% | Scavenger-Mutant Dominant Class ---------------- Mutant | -10/Materials Mutant | -10/Mines Mutant | -9/Materials Resources | -11 -10 -10 -9 ----------- Run | Yrd Mat Min Mat Matter Collected 546 | 218 123 90 115 Remotely . | . . . . Salvage Created 1952 | . 647 502 803 Parts 133 | . 37 31 65 Haulers Intercepted 4 | . 1 . 3 Recyclers Shooed . | . . . . Parts Field Recycled . | . . . . Retrieved Matter . | . . . . Parts Self-Destructed . | . . . . Prevented . | . . . . Parts Restored . | . . . . Kills | -11 -10 -10 -9 ------- Run | Yrd Mat Min Mat Combat Hostiles Destroyed 45 | . 18 11 16 Guns 29 | . 17 10 2 Cannons 14 | . . . 14 Classes Destroyed 10 | . 5 2 3 Worker 1 | . 1 . . Builder 1 | . . 1 . Hauler 4 | . 1 . 3 Recycler 1 | . . 1 . Mechanic 1 | . . . 1 Operator 1 | . . . 1 Watcher 1 | . 1 . . Swarmer 15 | . 6 3 6 Grunt 23 | . 12 8 3 Sentry 7 | . . . 7 Best Kill Streak 5 | . 5 3 3 Combat Bots Only 4 | . 4 3 3 Max Kills in Single Turn 2 | . 2 2 1 Gunslinging 1 | . . 1 . Exploded . | . . . . Melee . | . . . . Uniques/NPCs Destroyed . | . . . . Combat | -11 -10 -10 -9 -------- Run | Yrd Mat Min Mat Hostile Shots Fired 154 | . 62 36 56 Missed 30 | . 13 5 12 Hits 124 | . 49 31 44 Projectile 124 | . 49 31 44 Critical Strikes 4 | . . 1 3 Damage Taken 1434 | . 465 406 563 Core 258 | . 112 85 61 Absorbed by Shields . | . . . . Core Remaining (%) 60 | 100 . 21 . Volleys Fired 120 | . 41 30 49 Largest 2 | . 2 2 2 Hottest 150 | . 112 112 150 Shots Fired 239 | . 82 60 97 Gun 164 | . 82 60 22 Cannon 75 | . . . 75 Launcher . | . . . . Special . | . . . . Kinetic 6 | . 6 . . Thermal 233 | . 76 60 97 Explosive . | . . . . Electromagnetic . | . . . . Robot Hit Streak 9 | . 9 8 5 Robot Miss Streak 3 | . 3 1 3 Penetration Max . | . . . . Secondary Targets 5 | . 1 3 1 Max Gunslinging Chain 1 | . 1 1 1 Shots Hit Robots 148 | . 50 44 54 Core Hits 63 | . 23 19 21 Critical Kills . | . . . . Critical Parts Destroyed . | . . . . Critical Strikes 11 | . 5 5 1 Burn 11 | . 5 5 1 Melee Attacks . | . . . . Impact . | . . . . Slashing . | . . . . Piercing . | . . . . Sneak Attacks . | . . . . Combat Hostiles . | . . . . Follow-up Attacks . | . . . . Damage Inflicted 2732 | . 794 652 1286 Guns 1596 | . 750 652 194 Cannons 1092 | . . . 1092 Explosions . | . . . . Melee . | . . . . Ramming 44 | . 44 . . Kinetic 26 | . 26 . . Thermal 2662 | . 724 652 1286 Explosive . | . . . . Electromagnetic . | . . . . Impact . | . . . . Slashing . | . . . . Piercing . | . . . . Highest Corruption . | . . . . Average Corruption . | . . . . Corruption Purged . | . . . . Corruption Blocked . | . . . . Overload Shots . | . . . . Overflow Damage 2 | . . . 2 Projectiles 2 | . . . 2 Explosions . | . . . . Melee . | . . . . Knockbacks . | . . . . Impact . | . . . . Kinetic . | . . . . Secondary . | . . . . Self-Inflicted Damage 22 | . 22 . . Shots . | . . . . Rammed 1 | . 1 . . Targets Rammed 1 | . 1 . . Kicked . | . . . . Crushed . | . . . . Highest Temperature 306 | . 192 196 306 Average Temperature 76 | . 66 87 78 Received Heat Transfer 561 | . 132 213 216 Siege Activations . | . . . . Martial Activations . | . . . . Shielding Activations . | . . . . Robots Disrupted . | . . . . Combat Hostiles . | . . . . Robots Corrupted . | . . . . Combat Hostiles . | . . . . Parts Fried . | . . . . Impact Corruptions . | . . . . Robots Melted 2 | . 1 1 . Combat Hostiles 2 | . 1 1 . Parts Melted 11 | . 3 4 4 Heat Transferred 6365 | . 2110 1998 2257 Parts Sabotaged . | . . . . Parts Stolen . | . . . . Parts Stripped . | . . . . Power Chain Reactions . | . . . . Alert | -11 -10 -10 -9 ------- Run | Yrd Mat Min Mat Maximum Alert Level 1 | . 1 . 1 Low Security (%) 86 | 100 71 100 83 Level 1 13 | . 28 . 16 Level 2 . | . . . . Level 3 . | . . . . Level 4 . | . . . . Level 5 . | . . . . High Security . | . . . . Max Security . | . . . . Peak Influence 296 | . 296 142 267 Initial 112 | . . 112 . Average 76 | . 106 33 98 Influence Increases 1622 | . 607 280 735 Destroy 0b10 Robot/C 1040 | . 360 220 460 Destroy 0b10 Robot/NC 50 | . 15 10 25 Destroy Leader 240 | . 64 50 126 Allied During Kill 33 | . . . 33 Successful Hack 33 | . 17 . 16 Select Force Hacks 90 | . 60 . 30 Disable Machine 30 | . 15 . 15 Destroy Structure 16 | . 1 . 15 Lose Combat Pursuer 90 | . 75 . 15 Influence Decreases 1355 | . 317 570 468 Entered New Map 178 | . . 178 . Time Decay 1067 | . 307 352 408 Lost Part 90 | . 10 40 40 Lost Ally 20 | . . . 20 Squads Dispatched 10 | . 5 1 4 Investigation 6 | . 3 1 2 Extermination . | . . . . Reinforcement 4 | . 2 . 2 Assault . | . . . . Garrison . | . . . . Intercept . | . . . . Searches Triggered . | . . . . Construction Impeded . | . . . . Haulers Reinforced . | . . . . Active Scanning Responses . | . . . . Cargo Convoy Interrupts . | . . . . Stealth | -11 -10 -10 -9 --------- Run | Yrd Mat Min Mat Distress Signals 4 | . 2 . 2 Communications Jammed . | . . . . Distress Signals . | . . . . Times Spotted 79 | . 27 11 41 Peak Tracking Total 5 | . 5 3 5 Tactical Retreats 5 | . 4 . 1 Traps | -11 -10 -10 -9 ------- Run | Yrd Mat Min Mat Traps Triggered 1 | . 1 . . Indirectly . | . . . . Trap Hack Attempts . | . . . . Triggered . | . . . . Disarmed . | . . . . Reprogrammed . | . . . . Reused . | . . . . Traps Extracted . | . . . . Installed . | . . . . Triggered . | . . . . Machines | -11 -10 -10 -9 ---------- Run | Yrd Mat Min Mat Machines Disabled 2 | . 1 . 1 Max in Single Turn 1 | . 1 . 1 Machines Repaired . | . . . . Machines Dismantled . | . . . . Machines Sabotaged . | . . . . Overloaded Fab Kills . | . . . . Hacking | -11 -10 -10 -9 --------- Run | Yrd Mat Min Mat Machines Accessed 18 | . 7 2 9 Terminals 13 | . 5 . 8 Fabricators . | . . . . Repair Stations . | . . . . Recycling Units 3 | . 2 . 1 Scanalyzers . | . . . . Garrison Access . | . . . . Total Hacks 36 | . 14 2 20 Successful 19 | . 8 2 9 Failed 17 | . 6 . 11 Catastrophic 2 | . . . 2 Database Lockouts . | . . . . Manual 32 | . 14 . 18 Terminals 31 | . 12 . 19 Fabricators . | . . . . Repair Stations . | . . . . Recycling Units 3 | . 2 . 1 Scanalyzers . | . . . . Garrison Access . | . . . . Terminal Hacks 10 | . 3 2 5 Robot Analysis 4 | . 2 . 2 Open Door 2 | . . 2 . Branch Access Points 1 | . . . 1 Recycling Unit Index 2 | . 1 . 1 Zone Layout 1 | . . . 1 Fabricator Hacks . | . . . . Repair Station Hacks . | . . . . Recycling Unit Hacks . | . . . . Scanalyzer . | . . . . Garrison Access Hacks . | . . . . Unauthorized Hacks 9 | . 5 . 4 Terminals 6 | . 3 . 3 Botnet 6 | . 3 . 3 Fabricators . | . . . . Repair Stations . | . . . . Recycling Units 3 | . 2 . 1 Tunnel 3 | . 2 . 1 Scanalyzers . | . . . . Garrison Access . | . . . . Data Cores Recovered . | . . . . Used . | . . . . Hacking Detections 10 | . 3 . 7 Full Trace Events 2 | . 1 . 1 Feedback Events . | . . . . Feedback Blocked . | . . . . Robot Schematics Acquired . | . . . . Robots Built . | . . . . Authchips . | . . . . Time . | . . . . Total Robot Build Rating . | . . . . Part Schematics Acquired . | . . . . Parts Built . | . . . . Authchips . | . . . . Time . | . . . . Total Part Build Rating . | . . . . Part Studies Acquired . | . . . . Parts Repaired . | . . . . Time . | . . . . Parts Recycled . | . . . . Recycled Matter . | . . . . Retrieved Matter . | . . . . Retrieved Components . | . . . . Parts Scanalyzed . | . . . . Part Schematics Acquired . | . . . . Parts Damaged . | . . . . Bothacking | -11 -10 -10 -9 ------------ Run | Yrd Mat Min Mat Used RIF Installer . | . . . . Robots Hacked . | . . . . Non-combat . | . . . . Combat . | . . . . Robot Hacks Applied . | . . . . Relay Couplers Released . | . . . . Fabnet Peak Effective % . | . . . . Robots Rewired . | . . . . Allies Hacked . | . . . . Hacks Repelled . | . . . . Allies | -11 -10 -10 -9 -------- Run | Yrd Mat Min Mat Total Allies 4 | . . 4 . Largest Group 4 | . . 4 4 Highest-Rated Group 71 | . . 71 71 Highest-Rated Ally 31 | . . 31 31 Total Orders . | . . . . Ally Attacks 29 | . . . 29 Total Damage 284 | . . . 284 Kills 7 | . . . 7 Allies Corrupted . | . . . . Allies Melted . | . . . . Intel | -11 -10 -10 -9 ------- Run | Yrd Mat Min Mat Active Infowar (turns) . | . . . . Robot Analysis Total 4 | . 2 . 2 Derelict Logs Recovered 2 | . . 2 . Drone Launches . | . . . . Drone Recoveries . | . . . . Exploration | -11 -10 -10 -9 ------------- Run | Yrd Mat Min Mat Turns Passed 3532 | 74 910 1191 1357 Spaces Moved 1810 | 41 431 629 709 Core 3 | 3 . . . Treads 353 | 38 315 . . Legs . | . . . . Wheels 1454 | . 116 629 709 Hover . | . . . . Flight . | . . . . Fastest Speed 50 | 50 140 140 140 Average Speed 153 | 151 154 152 154 Slowest Speed 230 | 160 160 215 230 Overloaded Moves . | . . . . Propulsion Burnouts . | . . . . Robots Hopped . | . . . . Potential Cave-ins . | . . . . Cave-ins Triggered . | . . . . Exploration Rate (%) 65 | 4 85 98 73 Regions Visited 3 Branch Regions 1 Pre-discovered Areas 4 | . 2 1 1 Known Exits Taken . | . . . . Unknown Exits Taken 3 | 1 1 1 . Scrap Searched 1 | . . 1 . Spaces Dug . | . . . . Terrain Destroyed 16 | . . . 16 Melee . | . . . . Projectile 16 | . . . 16 AOE . | . . . . Terrain Rammed . | . . . . Walls Destroyed . | . . . . Machines Disabled . | . . . . Actions | -11 -10 -10 -9 --------- Run | Yrd Mat Min Mat Total 2319 | 50 593 801 875 Wait 293 | . 89 130 74 Move 1808 | 40 431 628 709 Hop . | . . . . Pick Up 41 | 4 14 6 17 Fast Attach 11 | 5 2 2 2 Attach 12 | 1 1 4 6 Detach 1 | . . . 1 Swap 14 | . 9 1 4 Drop 19 | . 6 . 13 Fire 120 | . 41 30 49 Melee . | . . . . Ram . | . . . . Kick . | . . . . Crush . | . . . . Escape Stasis . | . . . . Rewire . | . . . . Trap . | . . . . Miscellaneous . | . . . . Route ------- -11/Scrapyard -10/Materials (discovered 5 exits: *Mat x3 / *Min x2) -10/Mines (discovered 4 exits: *Mat x2 / [*Exi] / Sub) -9/Materials (discovered 4 exits: [*Mat x2] / *Min x2) History --------- Turn | Location | Event 16 | -11/Scrapyard | Discovered new exit (range 15) 75 | -11/Scrapyard | Entered Materials 75 | -10/Materials | Discovered new exit (range 7) 303 | -10/Materials | Build established: Mutant 339 | -10/Materials | Discovered new exit (range 3) 726 | -10/Materials | Discovered new exit (range 12) 790 | -10/Materials | Discovered new exit (range 15) 839 | -10/Materials | Discovered new exit (range 13) 985 | -10/Materials | Entered Mines 988 | -10/Mines | Core integrity fell below 50% 1032 | -10/Mines | Learned location of Recycling (-7) 1041 | -10/Mines | Found a hidden stash of uninstalled traps 1099 | -10/Mines | Deemed a non-threat by the Exiles lab entrance 1099 | -10/Mines | Discovered new exit (range 5) 1211 | -10/Mines | Met a Derelict shopkeep closing up shop 1317 | -10/Mines | Discovered new exit (range 7) 1447 | -10/Mines | Identified exit to Subcaves 1647 | -10/Mines | Met a Derelict who couldn't figure out how to use a Trap Extractor 2019 | -10/Mines | Assisted by bots powering up and referring to "LRC-V3" 2162 | -10/Mines | Discovered new exit (range 6) 2172 | -10/Mines | Received a Mining Laser from a helpful Derelict 2176 | -10/Mines | Entered Materials 2176 | -9/Materials | Accompanied by 4 allies 2176 | -9/Materials | Evolved 2 slots: Utility x2 2352 | -9/Materials | Discovered new exit (range 7) 2968 | -9/Materials | Discovered new exit (range 3) 3241 | -9/Materials | Identified exit to Mines 3448 | -9/Materials | Discovered new exit (range 12) 3533 | -9/Materials | Self-destructed Last Messages --------------- 03421_ K-01 Serf collects debris. 03448_ EXIT=FOUND 03496_ K-01 Serf cleans the TF Node. 03496_ R-06 Scavenger inserts Lgt. Armor Plating into recycling unit. 03497_ Recycling unit begins recycling process. 03499_ R-06 Scavenger inserts Lgt. Treads into recycling unit. 03502_ R-06 Scavenger inserts Heat Sink into recycling unit. 03503_ Recycling unit begins recycling process. 03503_ Connecting with Recycling Unit... >>Force(Tunnel) DISCOVERED[-6/Hub_04(d)] 03503_ ALERT: Suspicious activity at Recycling Unit M001. Dispatching Investigation squad. 03525_ Wheel destroyed. 03527_ Y-45 Defender destroyed. 03531_ ALERT: Hostiles spotted, dispatching reinforcements to Terminal M005. Map ----- +----------------------------------------------------+ | ?????????????????????????????????????????? | | ?????????????????????????????????????????? | | ?????????????????????????????????????????? | | ?????????????????????????????????????????? | | ?????????????????????????????????????????? | | ?????????????????????????????????????????? | | ?????????????????????????????????????????? | | ?????????????????????????????????????????? | | ?????????????????????????????????????????? | | ?????????????????????????????????????????? | | ?????????????????????????????????????????? | | ?????????????????????????????????????????? | | ????????????????????? ??????????????????? | | ???????????????????? ??????????????????? | | ????????????????????# ??????????????????? | | ????????????????????# ??????????????????? | | ????????????????????# ###???????????????? | | ????????????????????+ ????????????????? | | ????????????????????# ????????????????? | | ????????????????????# #????????????????? | | ????????????????????# ########?????????? | | ????????????????????# # "?????????? | | ???????????????#+???# # """ ""S""??????? | | ??????????#????# #### # """ "" "" #????? | | ???????+### #### # """ #????? | | ???????? #@ #????? | | ???????? +[! [ ;#???? | | ????????""" """ "" #=%= ##???? | | ??? """ """ Y" ##! #########????? | | ??? """ """ "" ###????????????? | | ??" #??????????????? | | ??? % #??????????????? | | ???? ######## #######+#??????????????? | | ????????????# # ?? #?????????????? | | ????????????# # """ #?????????????? | | ????????????# # """"" #?????????????? | | ??????###???# # """"" #?????????????? | | ??????# ???# # """"" #?????????????? | | ??????# ??# #?? """ #?????????????? | | ??????# ??# #?? #?????????????? | | ??????# [[?# #??? #?????????????? | | ??????#! [[?# #??? #?????????????? | | ####### [/ # #####+####?????????????? | | #!!!!## # #?????????????? | | ! !# """ + < #?????????????? | | # """ # #?????????????? | | ## """ # ####### #?????????????? | | ## ?# # # #???????????? | | ## ?# # #!!!!]]#???????????? | | % ######## + #!!!!]]#???????????? | +----------------------------------------------------+ Best States ------------- Heat Dissipation 72 Coolant Potential 50 Energy Generation 12 Energy Capacity 265 Matter Stores 300 Matter Capacity 300 Sight Range 16 Terrain Scan Density 10 Armor Coverage 450 Evasion (%) 40 Recoil Reduction 2 Item Schematics ----------------- None Robot Schematics ------------------ None Fabricated ------------ Nothing Repaired ---------- Nothing Studied --------- None Alien Tech Used ----------------- None Achievements -------------- None Challenges ------------ None Game ------ Seed GravitonEfficiencyPod Manual? 0 Play Time 00:18:48 Cumulative 289.7 hours Start 2026.08.20 @ 23:56:51 End 2026.08.21 @ 00:15:05 Sessions 1 Manual Loads 0 Difficulty Rogue Special Mode None Game No. 275 Rogue 221 Adventurer 54 Explorer 0 Win Type - Total 11 Types 7/0/1/1/0/0/0/1/0/1 Lore% 77 Gallery% 66 Achievement% 61 Wizard Run 0 Options --------- Layout 1 ASCII 0 Keyboard 0 Movement Mouse Keybinds 1 Fullscreen 2 Font 32/Tamsyn Map View 50x35 Zoom Use 0% Tactical HUD 1 Map Filters NONE Filters NONE Steam 1 RUN: 113bf519-eef5-4811-a9cc-35f8713a8b87